[Event "Romanian Championship 2024"]
[Site "Eforie Nord"]
[Date "2024.02.25"]
[Round "2.13"]
[White "Cnejev, Vladimir-Alexandru"]
[Black "Botea, David-Alexandru"]
[Result "1-0"]
[ECO "B40"]
[WhiteElo "2311"]
[BlackElo "2081"]
[Annotator "RC"]
[PlyCount "59"]
[EventDate "2024.02.24"]
[EventType "swiss"]
[EventCountry "ROU"]
[SourceTitle "playchess.com"]
[Source "ChessBase"]
[SourceQuality "1"]
[TimeControl "40/5400+30:900+30"]

1. e4 {[%emt 0:02:08]} c5 {[%emt 0:00:20]} 2. Nf3 {[%emt 0:00:13]} e6 {[%emt 0:00:20]} 3. c3 {[%emt 0:08:02]} d5 {[%emt 0:00:33]} 4. e5 {[%emt 0:03:44]} d4 {[%emt 0:00:42]} 5. Bd3 {[%emt 0:00:10]} Bd7 {[%emt 0:00:33]} 6. Na3 {[%emt 0:00:41]} Bc6 {[%emt 0:02:03]} 7. O-O {[%emt 0:03:10]} Ne7 {[%emt 0:00:47]} 8. Re1 {[%emt 0:06:28]} Ng6 {[%emt 0:02:45]} 9. Be4 {[%emt 0:01:36]} Be7 {[%emt 0:00:25]} 10. cxd4 {[%emt 0:02:02]} cxd4 {[%emt 0:00:15]} 11. d3 {[%emt 0:00:08]} O-O {[%emt 0:00:48]} 12. Nc2 {[%emt 0:00:30]} Bxe4 {[%emt 0:00:42]} 13. Rxe4 {[%emt 0:00:09]} Nc6 {[%emt 0:00:09]} 14. b3 {[%emt 0:15:40]} Qc7 {[%emt 0:19:12]} 15. Ncxd4 {[%emt 0:09:02]} Ngxe5 {[%emt 0:34:45]} 16. Nxe5 {[%emt 0:01:44]} Nxd4 {[%emt 0:02:28]} 17. Bf4 {[%emt 0:13:26]} Bd6 {[%emt 0:03:19]} 18. Rc1 {[%emt 0:06:45]} Nc6 {[%emt 0:00:56]} 19. Qh5 {[%emt 0:01:51]} Qa5 {[%emt 0:12:31]} 20. Qe2 {[%emt 0:04:57]} Bxe5 {[%emt 0:04:06]} 21. Bxe5 {[%emt 0:00:09]} Rad8 {[%emt 0:01:51]} 22. Bc3 {[%emt 0:01:22]} Qd5 {[%emt 0:00:59]} 23. Rd1 {[%emt 0:01:27]} Rd7 {[%emt 0:04:50]} 24. h3 {[%emt 0:01:18]} Rfd8 {[%emt 0:01:07]} 25. Kh2 {[%emt 0:04:12]} Qb5 {[%emt 0:02:06]} 26. Qb2 {[%emt 0:03:08]} Rxd3 {[%emt 0:04:16]} 27. Rde1 {[%emt 0:06:06]} g6 {[%emt 0:00:40]} 28. Bh8 {[%emt 0:00:47]} e5 {[%emt 0:00:27]} 29. Rxe5 {[%emt 0:00:26]} Nxe5 {[%emt 0:00:32]} 30. Rxe5 {[%emt 0:00:04]} 1-0

[Event "Romanian Championship 2024"]
[Site "Eforie Nord"]
[Date "2024.02.25"]
[Round "2.14"]
[White "Craciun, Sasha-Matei"]
[Black "Ciorgovean, Iustin"]
[Result "1/2-1/2"]
[ECO "B90"]
[WhiteElo "2080"]
[BlackElo "2310"]
[Annotator "RC"]
[PlyCount "42"]
[EventDate "2024.02.24"]
[EventType "swiss"]
[EventCountry "ROU"]
[SourceTitle "playchess.com"]
[Source "ChessBase"]
[SourceQuality "1"]
[TimeControl "40/5400+30:900+30"]

1. e4 {[%emt 0:00:04]} c5 {[%emt 0:00:01]} 2. Nf3 {[%emt 0:00:13]} d6 {[%emt 0:00:09]} 3. d4 {[%emt 0:00:15]} cxd4 {[%emt 0:00:04]} 4. Nxd4 {[%emt 0:00:11]} Nf6 {[%emt 0:00:05]} 5. Nc3 {[%emt 0:00:02]} a6 {[%emt 0:00:04]} 6. h3 {[%emt 0:00:12]} e5 {[%emt 0:00:12]} 7. Nde2 {[%emt 0:00:20]} h5 {[%emt 0:00:07]} 8. g3 {[%emt 0:00:10]} Be7 {[%emt 0:01:57]} 9. Bg2 {[%emt 0:00:12]} b5 {[%emt 0:04:34]} 10. Nd5 {[%emt 0:00:17]} Nxd5 {[%emt 0:02:19]} 11. Qxd5 {[%emt 0:00:09]} Ra7 {[%emt 0:00:08]} 12. Be3 {[%emt 0:02:30]} Be6 {[%emt 0:04:26]} 13. Qd2 {[%emt 0:01:34]} Rb7 {[%emt 0:01:00]} 14. Nc3 {[%emt 0:00:55]} Nd7 {[%emt 0:16:38]} 15. Nd5 {[%emt 0:02:55]} Nf6 {[%emt 0:01:05]} 16. Nxe7 {[%emt 0:06:55]} Kxe7 {[%emt 0:01:25]} 17. O-O {[%emt 0:05:31]} Nd7 {[%emt 0:28:36]} 18. Rfd1 {[%emt 0:20:31]} Qc7 {[%emt 0:00:17]} 19. a4 {[%emt 0:10:34]} bxa4 {[%emt 0:09:52]} 20. Rxa4 {[%emt 0:00:23]} Rxb2 {[%emt 0:00:50]} 21. Rxa6 {[%emt 0:00:21]} Rxc2 {[%emt 0:05:27]} 1/2-1/2

[Event "Romanian Championship 2024"]
[Site "Eforie Nord"]
[Date "2024.02.25"]
[Round "2.15"]
[White "Serban, Cristian-Stefan"]
[Black "Moraru, Stefan-Robert"]
[Result "1-0"]
[ECO "E08"]
[WhiteElo "2309"]
[BlackElo "1221"]
[Annotator "RC"]
[PlyCount "121"]
[EventDate "2024.02.24"]
[EventType "swiss"]
[EventCountry "ROU"]
[SourceTitle "playchess.com"]
[Source "ChessBase"]
[SourceQuality "1"]
[TimeControl "40/5400+30:900+30"]

1. d4 {[%emt 0:00:17]} Nf6 {[%emt 0:00:27]} 2. c4 {[%emt 0:00:06]} e6 {[%emt 0:00:03]} 3. Nf3 {[%emt 0:00:05]} c6 {[%emt 0:00:09]} 4. g3 {[%emt 0:02:10]} d5 {[%emt 0:00:04]} 5. Bg2 {[%emt 0:00:05]} Be7 {[%emt 0:00:19]} 6. O-O {[%emt 0:00:13]} O-O {[%emt 0:00:10]} 7. Qc2 {[%emt 0:00:23]} h6 {[%emt 0:00:16]} 8. Nbd2 {[%emt 0:00:14]} Nbd7 {[%emt 0:01:11]} 9. b3 {[%emt 0:00:09]} c5 {[%emt 0:00:11]} 10. Bb2 {[%emt 0:02:36]} cxd4 {[%emt 0:00:33]} 11. Bxd4 {[%emt 0:00:09]} b6 {[%emt 0:00:36]} 12. Rfd1 {[%emt 0:02:34]} Bb7 {[%emt 0:00:14]} 13. Qb2 {[%emt 0:00:08]} Bc5 {[%emt 0:00:46]} 14. Bc3 {[%emt 0:07:48]} Qe7 {[%emt 0:00:22]} 15. b4 {[%emt 0:01:02]} Bd6 {[%emt 0:00:10]} 16. cxd5 {[%emt 0:00:38]} Bxd5 {[%emt 0:00:18]} 17. e4 {[%emt 1:20:23]} Nxe4 {[%emt 0:01:14]} 18. Nxe4 {[%emt 0:00:00]} Bxe4 {[%emt 0:00:12]} 19. Bxg7 {[%emt 0:00:00]} f6 {[%emt 0:01:01]} 20. Bxf8 {[%emt 0:00:00]} Rxf8 {[%emt 0:00:19]} 21. Qd2 {[%emt 0:00:00]} Ne5 {[%emt 0:00:40]} 22. Nxe5 {[%emt 0:00:00]} Bxe5 {[%emt 0:00:25]} 23. Bxe4 {[%emt 0:00:00]} Bxa1 {[%emt 0:00:09]} 24. Rxa1 {[%emt 0:00:00]} Qg7 {[%emt 0:00:12]} 25. Rd1 {[%emt 0:00:00]} f5 {[%emt 0:00:14]} 26. Bg2 {[%emt 0:00:00]} Kh8 {[%emt 0:00:18]} 27. Qd7 {[%emt 0:00:00]} Rf7 {[%emt 0:00:08]} 28. Qxe6 {[%emt 0:00:00]} Rf6 {[%emt 0:00:41]} 29. Qe5 {[%emt 0:00:00]} Kh7 {[%emt 0:01:11]} 30. Bh3 {[%emt 0:00:00]} Qf7 {[%emt 0:00:26]} 31. Rc1 {[%emt 0:00:00]} Kg6 {[%emt 0:00:30]} 32. Rc7 {[%emt 0:00:00]} Qe6 {[%emt 0:00:24]} 33. Qxe6 {[%emt 0:00:00]} Rxe6 {[%emt 0:00:04]} 34. Rxa7 {[%emt 0:00:00]} Re1+ {[%emt 0:00:26]} 35. Bf1 {[%emt 0:00:00]} Kg5 {[%emt 0:00:11]} 36. Kg2 {[%emt 0:00:00]} Rb1 {[%emt 0:00:08]} 37. a3 {[%emt 0:00:00]} Ra1 {[%emt 0:00:07]} 38. Ra6 {[%emt 0:00:00]} f4 {[%emt 0:00:08]} 39. Bd3 {[%emt 0:00:00]} fxg3 {[%emt 0:00:15]} 40. hxg3 {[%emt 0:00:00]} Rd1 {[%emt 0:00:00]} 41. f4+ {[%emt 0:00:00]} Kf6 {[%emt 0:00:33]} 42. Rxb6+ {[%emt 0:00:00]} Ke7 {[%emt 0:00:11]} 43. Be2 {[%emt 0:00:00]} Rd2 {[%emt 0:00:07]} 44. Kf2 {[%emt 0:00:00]} Ra2 {[%emt 0:00:05]} 45. Rxh6 {[%emt 0:00:00]} Rxa3 {[%emt 0:00:07]} 46. g4 {[%emt 0:00:00]} Rb3 {[%emt 0:00:06]} 47. b5 {[%emt 0:00:00]} Kf8 {[%emt 0:00:11]} 48. g5 {[%emt 0:00:00]} Kg7 {[%emt 0:00:04]} 49. f5 {[%emt 0:31:00]} Rb4 {[%emt 1:53:24]} 50. f6+ {[%emt 0:00:00]} Kf7 {[%emt 0:00:00]} 51. Rh7+ {[%emt 0:00:00]} Kf8 {[%emt 0:00:00]} 52. Rh8+ {[%emt 0:00:00]} Kf7 {[%emt 0:00:00]} 53. Bh5+ {[%emt 0:00:00]} Ke6 {[%emt 0:00:00]} 54. f7 {[%emt 0:00:00]} Rf4+ {[%emt 0:00:00]} 55. Ke3 {[%emt 0:00:00]} Rf5 {[%emt 0:00:00]} 56. Bg4 {[%emt 0:00:00]} Kxf7 {[%emt 0:00:00]} 57. Bxf5 {[%emt 0:00:00]} Kg7 {[%emt 0:00:00]} 58. Rh7+ {[%emt 0:00:00]} Kg8 {[%emt 0:00:00]} 59. b6 {[%emt 0:00:00]} Kf8 {[%emt 0:00:00]} 60. b7 {[%emt 0:00:00]} Ke8 {[%emt 0:00:00]} 61. b8=Q# {[%emt 0:00:00]} 1-0

[Event "Romanian Championship 2024"]
[Site "Eforie Nord"]
[Date "2024.02.25"]
[Round "2.16"]
[White "Costescu, Mihnea-Constantin"]
[Black "Prisacaru, Stefan-Emilian"]
[Result "0-1"]
[ECO "D35"]
[WhiteElo "1944"]
[BlackElo "2289"]
[Annotator "TA"]
[PlyCount "66"]
[EventDate "2024.02.24"]
[EventType "swiss"]
[EventCountry "ROU"]
[SourceTitle "playchess.com"]
[Source "ChessBase"]
[SourceQuality "1"]
[TimeControl "40/5400+30:900+30"]

{[%evp 11,66,13,31,20,19,25,35,-40,-33,-40,-54,-56,-57,-42,-33,-40,-38,-39,-32,-85,-97,-121,-84,-192,-145,-197,-204,-201,-205,-199,-222,-207,-212,-212,-197,-209,-197,-206,-196,-181,-132,-252,-237,-639,-581,-705,-700,-716,-715,-727,-713,-711,-685,-868,-792,-1168,-1151]} 1. d4 {[%emt 0:00:02]} d5 {[%emt 0:00:03]} 2. c4 {[%emt 0:00:06]} e6 {[%emt 0:00:03]} 3. Nf3 {[%emt 0:00:21]} Nf6 {[%emt 0:00:06]} 4. Nc3 {[%emt 0:00:04]} Nbd7 {[%emt 0:00:25]} 5. cxd5 {[%emt 0:04:28]} exd5 {[%emt 0:00:05]} 6. Bf4 {[%emt 0:00:12]} Bb4 {[%emt 0:00:29]} 7. Qb3 {[%emt 0:01:56]} c5 {[%emt 0:06:25]} 8. dxc5 {[%emt 0:07:44]} Qa5 {[%emt 0:01:29]} 9. Bd2 {[%emt 0:01:17]} (9. a3 $1 $14 Bxc3+ 10. bxc3) 9... Nxc5 $15 {[%emt 0:05:15]} 10. Qd1 {[%emt 0:01:08]} Nce4 {[%emt 0:07:09]} 11. Nxe4 {[%emt 0:07:28]} Nxe4 {[%emt 0:00:19]} 12. a3 {[%emt 0:03:14]} Nxd2 {[%emt 0:14:35]} 13. Nxd2 {[%emt 0:00:44]} Be7 {[%emt 0:01:05]} 14. e3 {[%emt 0:06:10]} Bf6 {[%emt 0:02:19]} 15. Qb3 {[%emt 0:04:11]} (15. b4 $15 Qb6 16. Rc1) 15... O-O $17 {[%emt 0:02:40]} 16. Bd3 {[%emt 0:05:24]} Be6 {[%emt 0:04:15]} 17. Bc2 {[%emt 0:09:20]} (17. Qd1 $17) 17... g6 {[%emt 0:12:12]} (17... Rac8 $19 {...Rfd8 wäre nun fies.} 18. Qa4 Qxa4 19. Bxa4 Bxb2) 18. Rb1 {[%emt 0:05:45]} (18. Qb4 $17 {war nötig.} Qxb4 19. axb4) 18... Rac8 {[%emt 0:03:36] ...d4 ist eine echte Drohung.} 19. Bd3 {[%emt 0:03:40]} d4 {[%emt 0:08:19]} 20. Qb4 {[%emt 0:02:06]} Qxb4 {[%emt 0:05:13]} 21. axb4 {[%emt 0:00:10]} dxe3 {[%emt 0:00:02]} 22. fxe3 {[%emt 0:00:29] [#]} Bxb2 $1 {[%emt 0:02:14][%cal Of8d8][%mdl 512]} 23. Ke2 {[%emt 0:03:52]} (23. Kf2 Bf6) 23... Bc3 {[%emt 0:00:39]} 24. Ne4 {[%emt 0:02:33]} Rfd8 {[%emt 0:06:01]} 25. h3 {[%emt 0:10:46] Pariert Bg4+.} Ba2 {[%emt 0:14:29]} (25... f5 $19 26. Nc5 Bd5) 26. Nxc3 {[%emt 0:01:34]} (26. Rbc1 $17 Be5 (26... Bxb4 27. Rxc8 Rxc8 28. Ra1 $17) 27. g4) 26... Rxc3 $19 {[%emt 0:00:10]} 27. Rbd1 {[%emt 0:00:05] [#]} (27. Ra1) 27... Rdxd3 $1 {[%emt 0:00:21][%mdl 512] Schwarz steht klar auf Gewinn.} 28. Rxd3 {[%emt 0:03:26][%mdl 4096] Endspiel. KRR-KRB} Bc4 {[%emt 0:00:03]} 29. Rhd1 {[%emt 0:01:11]} f5 {[%emt 0:00:25]} (29... Bxd3+ 30. Rxd3 Rxd3 31. Kxd3 $19) 30. g4 {[%emt 0:01:15]} Kf7 {[%emt 0:00:32]} (30... Bxd3+ 31. Rxd3 Rxd3 32. Kxd3 fxg4 33. hxg4) 31. gxf5 {[%emt 0:01:13]} gxf5 {[%emt 0:00:05]} 32. b5 {[%emt 0:02:30]} Ke6 {[%emt 0:00:19]} 33. b6 {[%emt 0:02:57]} axb6 {[%emt 0:00:07] Gewichteter Fehlerwert: Weiß=0.65/Schwarz=0.11 (sehr präzise) .  Fehler:       	Weiß=6     	Schwarz=2     OK:         	Weiß=8     	Schwarz=11    Bester:       	Weiß=1     	Schwarz=1} 0-1

[Event "Romanian Championship 2024"]
[Site "Eforie Nord"]
[Date "2024.02.25"]
[Round "2.17"]
[White "David, Alexandru-Vasile"]
[Black "Maximov, Oleg"]
[Result "1-0"]
[ECO "B27"]
[WhiteElo "2360"]
[BlackElo "2186"]
[Annotator "RC"]
[PlyCount "81"]
[EventDate "2024.02.24"]
[EventType "swiss"]
[EventCountry "ROU"]
[SourceTitle "playchess.com"]
[Source "ChessBase"]
[SourceQuality "1"]
[TimeControl "40/5400+30:900+30"]

1. e4 {[%emt 0:00:04]} c5 {[%emt 0:00:06]} 2. Nf3 {[%emt 0:00:07]} g6 {[%emt 0:00:04]} 3. c3 {[%emt 0:00:07]} Bg7 {[%emt 0:00:04]} 4. d4 {[%emt 0:00:23]} cxd4 {[%emt 0:00:04]} 5. cxd4 {[%emt 0:00:09]} d5 {[%emt 0:00:03]} 6. e5 {[%emt 0:00:09]} Bg4 {[%emt 0:00:06]} 7. Bb5+ {[%emt 0:00:23]} Nc6 {[%emt 0:02:57]} 8. Bxc6+ {[%emt 0:00:41]} bxc6 {[%emt 0:00:03]} 9. Nbd2 {[%emt 0:00:11]} Nh6 {[%emt 0:03:18]} 10. h3 {[%emt 0:02:18]} Bd7 {[%emt 0:01:43]} 11. O-O {[%emt 0:02:16]} O-O {[%emt 0:01:05]} 12. Re1 {[%emt 0:00:13]} f6 {[%emt 0:14:22]} 13. Nb3 {[%emt 0:05:25]} Qc8 {[%emt 0:11:20]} 14. Nc5 {[%emt 0:06:09]} Bxh3 {[%emt 0:01:47]} 15. gxh3 {[%emt 0:00:09]} Qxh3 {[%emt 0:00:03]} 16. e6 {[%emt 0:02:01]} Nf5 {[%emt 0:09:26]} 17. a4 {[%emt 0:07:50]} Rfb8 {[%emt 0:10:58]} 18. Ra3 {[%emt 0:02:56]} Qg4+ {[%emt 0:00:16]} 19. Kh1 {[%emt 0:02:28]} Rb4 {[%emt 0:00:36]} 20. Rd3 {[%emt 0:00:22]} Qh5+ {[%emt 0:06:44]} 21. Kg2 {[%emt 0:06:12]} Qg4+ {[%emt 0:02:01]} 22. Kf1 {[%emt 0:00:06]} Qh3+ {[%emt 0:01:43]} 23. Ke2 {[%emt 0:00:08]} Ng3+ {[%emt 0:00:32]} 24. Kd2 {[%emt 0:00:25]} Qg2 {[%emt 0:00:23]} 25. Kc2 {[%emt 0:08:11]} Ne4 {[%emt 0:14:35]} 26. Nxe4 {[%emt 0:04:34]} dxe4 {[%emt 0:00:04]} 27. Rxe4 {[%emt 0:00:09]} Rxa4 {[%emt 0:06:39]} 28. Kb1 {[%emt 0:03:56]} Rb4 {[%emt 0:00:10]} 29. Qc2 {[%emt 0:00:58]} Rab8 {[%emt 0:00:28]} 30. Re1 {[%emt 0:04:06]} R4b6 {[%emt 0:02:32]} 31. Rc3 {[%emt 0:01:06]} f5 {[%emt 0:01:00]} 32. Rg1 {[%emt 0:08:47]} Qh3 {[%emt 0:00:06]} 33. Ne5 {[%emt 0:00:04]} Qh2 {[%emt 0:00:23]} 34. Re1 {[%emt 0:00:09]} Bxe5 {[%emt 0:00:55]} 35. dxe5 {[%emt 0:00:06]} Qg2 {[%emt 0:00:24]} 36. f3 {[%emt 0:01:50]} Qg3 {[%emt 0:00:23]} 37. Qd2 {[%emt 0:00:39]} Qh4 {[%emt 0:01:53]} 38. Rd3 {[%emt 0:02:45]} Kg7 {[%emt 0:00:31]} 39. Rd7 {[%emt 0:02:49]} Re8 {[%emt 0:05:08]} 40. Re2 {[%emt 0:00:00]} f4 {[%emt 0:00:00]} 41. Rh2 {[%emt 0:02:40]} 1-0

[Event "Romanian Championship 2024"]
[Site "Eforie Nord"]
[Date "2024.02.25"]
[Round "2.18"]
[White "Stanica, Andrei"]
[Black "Cosma, Ioan"]
[Result "0-1"]
[ECO "B06"]
[WhiteElo "1720"]
[BlackElo "2316"]
[Annotator "RC"]
[PlyCount "54"]
[EventDate "2024.02.24"]
[EventType "swiss"]
[EventCountry "ROU"]
[SourceTitle "playchess.com"]
[Source "ChessBase"]
[SourceQuality "1"]
[TimeControl "40/5400+30:900+30"]

1. e4 {[%emt 0:00:03]} c5 {[%emt 0:00:15]} 2. c3 {[%emt 0:00:09]} d5 {[%emt 0:00:48]} 3. exd5 {[%emt 0:00:05]} Qxd5 {[%emt 0:00:05]} 4. d4 {[%emt 0:00:05]} g6 {[%emt 0:01:04]} 5. Nf3 {[%emt 0:00:09]} Bg7 {[%emt 0:00:14]} 6. Be3 {[%emt 0:00:36]} cxd4 {[%emt 0:01:01]} 7. cxd4 {[%emt 0:00:45]} Nf6 {[%emt 0:01:01]} 8. Nc3 {[%emt 0:00:20]} Qd8 {[%emt 0:01:53]} 9. Bb5+ {[%emt 0:03:21]} Nbd7 {[%emt 0:01:10]} 10. O-O {[%emt 0:00:45]} O-O {[%emt 0:00:27]} 11. Bxd7 {[%emt 0:11:09]} Bxd7 {[%emt 0:00:39]} 12. d5 {[%emt 0:03:20]} e6 {[%emt 0:13:39]} 13. dxe6 {[%emt 0:12:09]} Bxe6 {[%emt 0:00:11]} 14. Qxd8 {[%emt 0:00:29]} Rfxd8 {[%emt 0:00:20]} 15. Rfd1 {[%emt 0:01:10]} b6 {[%emt 0:07:57]} 16. h3 {[%emt 0:02:12]} Nd5 {[%emt 0:03:28]} 17. Bd4 {[%emt 0:15:10]} Nxc3 {[%emt 0:03:08]} 18. bxc3 {[%emt 0:00:14]} Rac8 {[%emt 0:01:34]} 19. Bxg7 {[%emt 0:02:54]} Rxd1+ {[%emt 0:05:01]} 20. Rxd1 {[%emt 0:00:03]} Kxg7 {[%emt 0:00:06]} 21. Rc1 {[%emt 0:17:08]} Bxa2 {[%emt 0:00:54]} 22. Nd2 {[%emt 0:00:47]} Rd8 {[%emt 0:08:32]} 23. Rc2 {[%emt 0:00:34]} Be6 {[%emt 0:00:14]} 24. g4 {[%emt 0:00:43]} a5 {[%emt 0:01:37]} 25. f3 {[%emt 0:01:38]} a4 {[%emt 0:47:42]} 26. c4 {[%emt 0:00:38]} a3 {[%emt 0:00:00]} 27. Kf2 {[%emt 0:01:17]} b5 {[%emt 0:00:00]} 0-1

[Event "Romanian Championship 2024"]
[Site "Eforie Nord"]
[Date "2024.02.25"]
[Round "2.19"]
[White "Corbu, George-Alexandru"]
[Black "Armenciu, Bogdan-Ovidiu"]
[Result "0-1"]
[ECO "A58"]
[WhiteElo "1902"]
[BlackElo "1936"]
[Annotator "RC"]
[PlyCount "64"]
[EventDate "2024.02.24"]
[EventType "swiss"]
[EventCountry "ROU"]
[SourceTitle "playchess.com"]
[Source "ChessBase"]
[SourceQuality "1"]
[TimeControl "40/5400+30:900+30"]

1. d4 {[%emt 0:00:03]} Nf6 {[%emt 0:00:30]} 2. c4 {[%emt 0:00:08]} c5 {[%emt 0:00:19]} 3. d5 {[%emt 0:01:15]} b5 {[%emt 0:01:02]} 4. cxb5 {[%emt 0:00:08]} a6 {[%emt 0:00:03]} 5. bxa6 {[%emt 0:00:06]} g6 {[%emt 0:00:25]} 6. Nc3 {[%emt 0:01:44]} Bg7 {[%emt 0:00:11]} 7. e4 {[%emt 0:01:06]} Qa5 {[%emt 0:03:16]} 8. Bd2 {[%emt 0:05:37]} Bxa6 {[%emt 0:02:41]} 9. Nge2 {[%emt 0:11:22]} O-O {[%emt 0:06:00]} 10. a4 {[%emt 0:05:55]} Qb4 {[%emt 0:33:42]} 11. f3 {[%emt 0:18:44]} Qb7 {[%emt 0:01:19]} 12. Be3 {[%emt 0:09:41]} d6 {[%emt 0:00:18]} 13. Rb1 {[%emt 0:01:07]} Nbd7 {[%emt 0:04:23]} 14. b3 {[%emt 0:08:35]} Rfb8 {[%emt 0:03:15]} 15. Ng3 {[%emt 0:05:42]} Ne8 {[%emt 0:06:18]} 16. Nb5 {[%emt 0:00:15]} Nc7 {[%emt 0:00:49]} 17. Nxc7 {[%emt 0:04:47]} Qxc7 {[%emt 0:00:21]} 18. Qc2 {[%emt 0:05:18]} Qb7 {[%emt 0:04:14]} 19. Ne2 {[%emt 0:03:26]} Bxe2 {[%emt 0:11:42]} 20. Bxe2 {[%emt 0:00:07]} Rxa4 {[%emt 0:00:36]} 21. Bd2 {[%emt 0:09:29]} Ra3 {[%emt 0:01:52]} 22. b4 {[%emt 0:01:15]} Bd4 {[%emt 0:03:52]} 23. Qc1 {[%emt 0:02:57]} Qa7 {[%emt 0:04:56]} 24. b5 {[%emt 0:01:20]} Nb6 {[%emt 0:01:38]} 25. Bd1 {[%emt 0:00:58]} Ra8 {[%emt 0:03:36]} 26. Ke2 {[%emt 0:00:39]} Qd7 {[%emt 0:00:24]} 27. Bc2 {[%emt 0:00:47]} Ra1 {[%emt 0:01:10]} 28. Rd1 {[%emt 0:01:23]} R8a2 {[%emt 0:00:52]} 29. Rxa1 {[%emt 0:00:31]} Rxa1 {[%emt 0:00:46]} 30. Qxa1 {[%emt 0:00:03]} Bxa1 {[%emt 0:00:09]} 31. Rxa1 {[%emt 0:00:00]} Qxb5+ {[%emt 0:00:06]} 32. Kd1 {[%emt 0:00:35]} Qf1+ {[%emt 0:00:21]} 0-1